bitfinex-derivatives/quotes_SOLF0:USTF0_20240902
["timestamp","ask_amount","ask_price","bid_price","bid_amount"]
[1725310728978,0.05134476,134.62,134.59,0.04744527]
[1725310729779,3.76300148,134.62,134.51,42.9]
[1725310730079,42.9,134.64,134.51,42.9]
[1725310730380,2.8256,134.68,134.47,1.6845]
[1725310730381,3.7163,134.55,134.47,1.6845]
[1725310730569,3.68462109,134.56,134.48,42.9]
[1725310730773,0.05500182,134.53,134.51,0.05219837]
[1725310730977,0.05106124,134.53,134.51,0.04900076]
[1725310732078,0.05106124,134.53,134.42,1.1821]
[1725310732390,3.65676077,134.55,134.44,42.9]
[1725310732591,42.9,134.57,134.44,42.9]
[1725310732890,2.7547,134.6,134.48,42.9]
[1725310733096,6.51129802,134.6,134.48,42.9]
[1725310733391,0.0493828,134.55,134.53,0.05245274]
[1725310733699,0.05516417,134.55,134.53,0.05245274]
[1725310735888,0.05516417,134.55,134.53,42.95245274]
[1725310736094,0.05516417,134.55,134.53,0.05245274]
[1725310737191,0.05516417,134.55,134.53,3.76905274]
[1725310737398,0.05516417,134.55,134.53,0.05245274]
[1725310737697,0.05516417,134.55,134.54,3.7165]
[1725310737991,42.9,134.65,134.53,42.95245274]
[1725310737992,225.0,134.7,134.53,85.85245274]
[1725310738191,5.03595535,134.68,134.57,42.9]
[1725310738389,0.99035535,134.67,134.59,3.7149]
[1725310738584,3.7139,134.64,134.57,42.9]
[1725310738987,0.05211148,134.62,134.59,0.05605842]
[1725310739393,3.73041757,134.62,134.59,0.05605842]
[1725310739591,0.05211148,134.62,134.59,0.05605842]
[1725310739897,3.85708919,134.62,134.59,0.05605842]
[1725310740097,0.05211148,134.62,134.59,0.05605842]
[1725310740293,3.7148,134.61,134.59,0.05605842]
[1725310740496,3.80656913,134.62,134.59,0.05605842]
[1725310740497,0.05211148,134.62,134.59,0.05605842]
[1725310741589,0.05211148,134.62,134.6,3.7146]
[1725310742194,0.05211148,134.62,134.61,3.7146]
[1725310743794,4.0456,134.68,134.64,3.7137]
[1725310743795,2.6953,134.68,134.64,3.7137]
[1725310744396,2.6953,134.68,134.6,42.9]
[1725310744606,4.0686,134.68,134.57,42.9]
[1725310744894,3.76563965,134.64,134.61,0.04736498]
[1725310745099,0.05183965,134.64,134.61,0.04736498]
[1725310745798,3.76563965,134.64,134.61,0.04736498]
[1725310746691,0.05183965,134.64,134.61,0.04736498]
[1725310747200,0.05183965,134.64,134.62,3.7141]
[1725310747595,0.05183965,134.64,134.61,0.04736498]
[1725310747789,0.05183965,134.64,134.62,3.7143]
[1725310748494,0.05183965,134.64,134.63,3.714]
[1725310748699,1.3365,134.73,134.62,42.9]
[1725310748900,3.7121,134.7,134.65,42.9]
[1725310749096,7.41939285,134.7,134.65,42.9]
[1725310749501,3.7121,134.7,134.65,46.6134]
[1725310749704,1.3365,134.73,134.66,0.04810556]
[1725310749705,0.0501569,134.69,134.66,0.04810556]
[1725310750006,3.73477629,134.71,134.58,42.9]
[1725310750007,42.9,134.7,134.58,42.9]
[1725310750198,3.7141,134.63,134.58,42.9]
[1725310750599,3.7141,134.63,134.59,3.7149]
[1725310750798,3.7141,134.63,134.6,0.05023694]
[1725310750997,0.04807362,134.62,134.6,0.05023694]
[1725310751504,0.04807362,134.62,134.6,3.76503694]
[1725310751901,0.04807362,134.62,134.61,3.7146]
[1725310752100,3.77944335,134.69,134.6,35.64]
[1725310752306,3.7127,134.68,134.63,35.64]
[1725310752492,1.3365,134.73,134.65,35.64]
[1725310753003,3.7123,134.7,134.66,3.7131]
[1725310753201,3.76627913,134.7,134.68,0.04817872]
[1725310753703,3.7124,134.69,134.68,0.04817872]
[1725310754398,3.7129,134.68,134.63,35.64]
[1725310754805,3.64608182,134.71,134.63,39.3539]
[1725310755106,3.7128,134.68,134.63,35.64]
[1725310755306,3.71008432,134.71,134.66,3.713]
[1725310755502,0.05717437,134.7,134.67,0.05245745]
[1725310755810,3.68482062,134.7,134.67,0.05245745]
[1725310756303,3.7126,134.68,134.67,0.05245745]
[1725310756899,7.39712062,134.7,134.67,0.05245745]
[1725310757209,3.68482062,134.7,134.67,0.05245745]
[1725310757606,3.68482062,134.7,134.56,0.2345]
[1725310757909,35.64,134.69,134.58,35.64]
[1725310758107,3.7133,134.66,134.58,35.64]
[1725310758303,35.64,134.69,134.59,3.715]
[1725310758504,35.64,134.69,134.58,35.64]
[1725310758700,3.714,134.63,134.62,0.05055405]
[1725310758906,7.48359626,134.63,134.62,0.05055405]
[1725310761507,0.05585131,134.65,134.62,0.05055405]
[1725310761904,0.05585131,134.65,134.63,3.714]
[1725310762108,0.05585131,134.65,134.63,35.64]
[1725310762406,0.05585131,134.65,134.64,3.7137]
[1725310763317,1.453,134.72,134.63,35.64]
[1725310763610,1.453,134.72,134.68,35.64]
[1725310763814,5.1647,134.72,134.68,35.64]
[1725310764007,3.66492812,134.71,134.65,35.64]
[1725310764313,3.66492812,134.71,134.67,0.05564923]
[1725310764314,0.05247703,134.69,134.67,0.05564923]
[1725310764815,3.73263698,134.69,134.67,0.05564923]
[1725310765010,0.05247703,134.69,134.67,0.05564923]
[1725310765412,3.79988173,134.69,134.67,0.05564923]
[1725310765604,7.51238173,134.69,134.67,0.05564923]
[1725310765914,1.3948,134.74,134.68,35.64]
[1725310766110,1.3948,134.74,134.67,0.05564923]
[1725310766111,1.3948,134.74,134.7,35.64]
[1725310766615,3.7105,134.76,134.72,3.7115]
[1725310766811,0.04907296,134.75,134.73,0.05171864]
[1725310767615,225.0,134.87,134.74,35.64]
[1725310767616,3.7095,134.8,134.74,35.64]
[1725310768014,7.42460268,134.8,134.74,35.64]
[1725310768216,3.7095,134.8,134.74,35.64]
[1725310768518,1.4149,134.82,134.75,3.7106]
[1725310768817,0.05228638,134.78,134.76,0.05603442]
[1725310769112,0.05228638,134.78,134.76,0.05101971]
[1725310769519,0.05228638,134.78,134.68,35.64]
[1725310769813,5.12974796,134.82,134.72,35.64]
[1725310770718,0.04807833,134.78,134.76,0.05706981]
[1725310770912,0.04807833,134.78,134.76,0.05291958]
[1725310771319,3.75797833,134.78,134.76,0.05291958]
[1725310771613,0.04807833,134.78,134.76,0.05291958]
[1725310773222,0.04807833,134.78,134.68,35.64]
[1725310773518,35.64,134.8,134.68,35.64]
[1725310773818,3.7106,134.76,134.71,3.7116]
[1725310774019,3.66186236,134.75,134.71,3.7116]
[1725310774218,0.05172317,134.74,134.72,0.0495062]
[1725310776018,3.7113,134.73,134.72,0.0495062]
[1725310776521,3.76292317,134.74,134.72,0.0495062]
[1725310776817,0.05172317,134.74,134.72,0.0495062]
[1725310777323,3.7113,134.73,134.72,0.0495062]
[1725310777516,1.3693,134.74,134.66,35.64]
[1725310777816,35.64,134.73,134.62,1.1798]
[1725310778020,35.64,134.73,134.61,36.4389]
[1725310778216,35.64,134.73,134.63,35.64]
[1725310778418,3.7123,134.7,134.65,3.7134]
[1725310778609,0.04813127,134.69,134.67,0.04956964]
[1725310778814,0.04813127,134.69,134.68,35.64]
[1725310779012,7.42,134.79,134.68,35.64]
[1725310779225,7.42,134.79,134.7,35.64]
[1725310779429,35.64,134.77,134.66,35.64]
[1725310779719,35.64,134.75,134.61,0.7989]
[1725310779922,0.05269544,134.69,134.68,3.7126]
[1725310780128,0.05654625,134.7,134.67,0.04752278]
[1725310780625,0.05654625,134.7,134.69,3.7122]
[1725310780925,0.05654625,134.7,134.67,0.04752278]
[1725310781722,3.7126,134.68,134.67,0.04752278]
[1725310782024,0.05654625,134.7,134.67,0.04752278]
[1725310783223,3.7135,134.65,134.6,35.64]
[1725310783625,3.7135,134.65,134.6,39.3547]
[1725310783823,3.7135,134.65,134.6,3.7147]
[1725310784124,0.05040386,134.64,134.61,0.05482375]
[1725310784623,3.714,134.63,134.61,0.05482375]
[1725310784829,7.38786705,134.63,134.61,0.05482375]
[1725310785621,3.67386705,134.63,134.61,0.05482375]
[1725310785830,0.05040386,134.64,134.62,3.7141]
[1725310786127,1.375,134.72,134.62,35.64]
[1725310786317,2.704,134.72,134.65,35.64]
[1725310786518,3.66161092,134.71,134.65,35.64]
[1725310786717,2.704,134.72,134.65,35.64]
[1725310786928,0.05339433,134.7,134.67,0.05570587]
[1725310787130,0.05339433,134.7,134.67,3.76840587]
[1725310787325,0.05339433,134.7,134.67,0.05570587]
[1725310788634,0.05339433,134.7,134.67,35.69570587]
[1725310788821,0.05339433,134.7,134.68,3.7126]
[1725310789128,0.05339433,134.7,134.67,0.05570587]
[1725310790528,0.05339433,134.7,134.6,35.64]
[1725310790733,35.64,134.7,134.61,3.7145]
[1725310791334,1.3535,134.69,134.58,35.64]
[1725310791632,0.04960602,134.65,134.62,0.05119997]
[1725310791820,3.81065153,134.65,134.62,0.05119997]
[1725310792025,3.7138,134.64,134.62,0.05119997]
[1725310792227,3.66265686,134.63,134.62,0.05119997]
[1725310792826,3.7138,134.64,134.62,0.05119997]
[1725310793028,7.46400451,134.65,134.62,0.05119997]
[1725310794432,3.7138,134.64,134.62,0.05119997]
[1725310795139,0.04960602,134.65,134.62,0.05119997]
[1725310795636,3.72587615,134.65,134.62,0.05119997]
[1725310798734,1.3473,134.64,134.62,0.05119997]
[1725310798940,35.64,134.63,134.54,35.64]
[1725310799438,3.715,134.6,134.55,3.716]
[1725310800040,0.04720733,134.59,134.56,0.05675542]
[1725310800234,0.04720733,134.59,134.56,35.69675542]
[1725310800839,1.3473,134.64,134.56,35.69675542]
[1725310801437,1.3259,134.69,134.58,35.64]
[1725310801638,2.6585,134.69,134.58,35.64]
[1725310802149,0.04741022,134.65,134.62,0.05287025]
[1725310802341,225.0,134.7,134.66,35.64]
[1725310802536,225.0,134.7,134.67,35.64]
[1725310802843,7.42,134.72,134.67,35.64]
[1725310803441,0.04963397,134.71,134.68,0.04892281]
[1725310803650,0.05537892,134.71,134.68,0.04807865]
[1725310804850,0.05537892,134.71,134.69,35.64]
[1725310805756,1.4016,134.82,134.69,35.64]
[1725310806051,1.4165,134.82,134.76,35.64]
[1725310806646,0.05685246,134.8,134.78,0.05335779]
[1725310807650,35.69685246,134.8,134.7,36.8196]
[1725310807850,35.64,134.8,134.7,36.8196]
[1725310808047,35.64,134.78,134.67,35.64]
[1725310808253,1.4248,134.77,134.67,35.64]
[1725310808660,1.4248,134.77,134.71,0.04704567]
[1725310808661,0.04903825,134.73,134.71,0.04704567]
[1725310808861,0.04903825,134.73,134.71,0.05480306]
[1725310809051,1.4165,134.82,134.72,35.64]
[1725310809257,2.8413,134.82,134.72,35.64]
[1725310809553,2.8413,134.82,134.66,35.64]
[1725310809554,2.8413,134.82,134.74,35.64]
[1725310810149,0.04763834,134.79,134.77,0.05382558]
[1725310810355,7.42,135.0,134.78,35.64]
[1725310810559,35.64,134.9,134.78,35.64]
[1725310810754,0.98815783,134.89,134.8,35.64]
[1725310810955,3.62809856,134.88,134.8,35.64]
[1725310811256,2.8022,134.92,134.82,35.64]
[1725310811459,0.05659209,134.88,134.86,0.05048357]
[1725310816764,42.73659209,134.88,134.74,1.1294]
[1725310817059,42.68,134.87,134.75,42.68]
[1725310817262,42.68,134.9,134.78,42.68]
[1725310817655,0.9880174,134.89,134.78,42.68]
[1725310817852,0.04701657,134.85,134.82,0.05124696]
[1725310819557,42.72701657,134.85,134.82,0.05124696]
[1725310819958,1.3306,134.86,134.75,42.68]
[1725310820361,3.69458736,134.89,134.78,42.68]
[1725310820666,42.68,134.9,134.78,42.68]
[1725310820864,42.68,134.9,134.83,0.05105173]
[1725310820865,0.05134032,134.85,134.83,0.05105173]
[1725310821067,0.04720598,134.85,134.83,0.05105173]
[1725310823269,42.72720598,134.85,134.83,0.05105173]
[1725310823471,42.72720598,134.85,134.74,1.1294]
[1725310823765,42.68,134.85,134.74,1.1294]
[1725310824361,42.68,134.85,134.78,0.05161921]
[1725310824362,0.05562179,134.81,134.78,0.05161921]
[1725310826356,5.05568418,134.89,134.78,42.73161921]
[1725310826559,5.05568418,134.89,134.78,42.68]
[1725310827260,0.05072201,134.85,134.82,0.0509482]
[1725310829061,42.73072201,134.85,134.82,0.0509482]
[1725310829379,1.3748,134.84,134.74,1.1294]
[1725310830172,3.7081,134.85,134.8,3.7092]
[1725310830373,0.05134141,134.84,134.81,0.05505772]
[1725310831574,0.05134141,134.84,134.82,3.7088]
[1725310831960,0.05134141,134.84,134.81,0.05505772]
[1725310832165,0.05134141,134.84,134.83,3.7085]
[1725310832365,1.3306,134.91,134.8,42.68]
[1725310832571,1.3306,134.91,134.81,1.1306]
[1725310833262,3.7072,134.88,134.84,3.708]
[1725310833464,3.7072,134.88,134.85,0.05673942]
[1725310833465,0.05192643,134.87,134.85,0.05673942]
[1725310833874,0.05192643,134.87,134.85,3.76463942]
[1725310835074,0.05192643,134.87,134.85,0.05673942]
[1725310835967,0.00172643,134.87,134.85,0.05673942]
[1725310836170,337.0,135.0,134.83,42.68]
[1725310836171,0.98773803,134.95,134.83,42.68]
[1725310836371,4.7575796,134.96,134.83,46.47653859]
[1725310836570,42.68,134.97,134.85,42.68]
[1725310836868,0.98741829,134.96,134.85,42.68]
[1725310837070,3.705,134.96,134.9,3.7065]
[1725310837272,0.05526643,134.92,134.89,0.05076573]
[1725310837463,0.05105871,134.92,134.89,0.0523359]
[1725310837666,0.05105871,134.92,134.9,3.7065]
[1725310837874,0.05105871,134.92,134.89,0.0523359]
[1725310838377,3.7065,134.91,134.89,0.0523359]
[1725310838577,0.05105871,134.92,134.89,0.0523359]
[1725310838778,1.43445871,134.92,134.89,0.0523359]
[1725310839172,0.05105871,134.92,134.89,0.0523359]
[1725310843279,0.05105871,134.92,134.91,3.7063]
[1725310843975,4.1139,135.0,134.89,42.68]
[1725310844374,3.7045,134.98,134.89,42.68]
[1725310844570,3.7045,134.98,134.93,3.7055]
[1725310844982,0.05173287,134.97,134.94,0.05477679]
[1725310845574,3.75643287,134.97,134.94,0.05477679]
[1725310846278,0.05173287,134.97,134.94,0.05477679]
[1725310847283,42.73173287,134.97,134.94,0.05477679]
[1725310847482,3.7052,134.96,134.94,0.05477679]
[1725310847781,42.73173287,134.97,134.94,0.05477679]
[1725310848279,42.73173287,134.97,134.84,42.68]
[1725310848280,42.68,134.95,134.84,42.68]
[1725310848673,3.7059,134.93,134.88,3.7069]
[1725310848982,7.46859743,134.93,134.88,3.7069]
[1725310849184,0.05057959,134.92,134.89,3.75990151]
[1725310850477,0.05057959,134.92,134.89,0.05300151]
[1725310851479,2.85957959,134.92,134.89,0.05300151]
[1725310851785,35.57,134.9,134.8,35.57]
[1725310851989,35.57,134.88,134.77,35.57]
[1725310852288,35.57,134.88,134.81,3.709]
[1725310852680,35.57,134.88,134.77,35.57]
[1725310852985,0.04790047,134.86,134.83,0.04927836]
[1725310853184,2.809,134.92,134.81,35.57]
[1725310853391,0.04835576,134.86,134.83,0.05062461]
[1725310853585,0.05564389,134.86,134.83,0.05173251]
[1725310854892,3.7082,134.84,134.83,0.05173251]
[1725310857488,3.76354389,134.86,134.83,0.05173251]
[1725310857794,0.05564389,134.86,134.83,0.05173251]
[1725310858489,0.05564389,134.86,134.83,3.76023251]
[1725310859093,0.05564389,134.86,134.84,3.7082]
[1725310859287,0.05564389,134.86,134.83,35.62173251]
[1725310859988,0.05564389,134.86,134.85,3.708]
[1725310860395,0.05564389,134.86,134.84,3.7081]
[1725310861394,0.05564389,134.86,134.85,3.708]
[1725310861900,1.3815,134.92,134.85,39.278]
[1725310862193,1.3815,134.92,134.84,35.57]
[1725310862385,1.3815,134.92,134.82,1.0794]
[1725310862386,3.7069,134.89,134.82,1.0794]
[1725310862581,3.7069,134.89,134.85,3.7079]
[1725310862787,1.3815,134.92,134.82,36.6494]
[1725310862995,0.04696794,134.88,134.86,0.05064215]
[1725310864799,0.04696794,134.88,134.86,3.75824215]
[1725310865001,3.62024633,134.87,134.78,35.57]
[1725310865195,35.61696794,134.88,134.78,35.57]
[1725310865196,35.57,134.88,134.78,35.57]
[1725310865501,2.7956,134.89,134.81,35.57]
[1725310866001,0.0478654,134.86,134.84,0.04872595]
[1725310866797,0.0478654,134.86,134.85,3.708]
[1725310866997,0.0478654,134.86,134.84,0.04872595]
[1725310868301,0.0478654,134.86,134.84,35.61872595]
[1725310868503,5.0876,134.92,134.88,3.707]
[1725310868799,1.3815,134.92,134.84,35.57]
[1725310868998,3.7066,134.9,134.86,3.7075]
[1725310869195,1.3815,134.92,134.82,1.0802]
[1725310869396,1.3815,134.92,134.81,35.57]
[1725310869598,0.04966483,134.88,134.86,0.05546699]
[1725310870203,7.46389306,134.87,134.86,0.05546699]
[1725310870406,3.75649306,134.87,134.79,35.57]
[1725310870702,3.66305349,134.87,134.83,3.7083]
[1725310870899,35.57,134.91,134.83,3.7083]
[1725310871103,35.57,134.91,134.79,35.57]
[1725310871302,3.76244242,134.86,134.84,0.04956729]
[1725310871505,0.04736538,134.86,134.84,0.04956729]
[1725310871897,3.75526538,134.86,134.84,0.04956729]
[1725310872091,0.04736538,134.86,134.84,0.04956729]
[1725310873001,5.0877,134.92,134.85,35.57]
[1725310873203,1.3815,134.92,134.83,35.57]
[1725310873403,3.7068,134.9,134.81,35.57]
[1725310873599,3.7068,134.9,134.83,35.57]
[1725310873904,1.3815,134.92,134.83,35.57]
[1725310874200,0.04849973,134.88,134.87,3.7074]
[1725310874405,0.0477526,134.89,134.86,0.05377485]
[1725310875302,0.0477526,134.89,134.88,3.7071]
[1725310875698,0.0477526,134.89,134.86,0.05377485]
[1725310875898,0.0477526,134.89,134.87,3.7074]
[1725310876299,0.0477526,134.89,134.86,0.05377485]
[1725310876806,3.7074,134.88,134.86,0.05377485]
[1725310878305,3.7546526,134.89,134.86,0.05377485]
[1725310878499,0.0477526,134.89,134.86,0.05377485]
[1725310878998,0.0477526,134.89,134.86,3.76137485]
[1725310879598,0.0477526,134.89,134.87,3.7074]
[1725310880102,0.0477526,134.89,134.88,3.7071]
[1725310882005,0.0477526,134.89,134.86,0.05377485]
[1725310882202,3.7546526,134.89,134.86,0.05377485]
[1725310882502,0.0477526,134.89,134.86,3.76127485]
[1725310883010,0.0477526,134.89,134.86,0.05377485]
[1725310883196,0.0477526,134.89,134.8,35.57]
[1725310883402,235.57,134.9,134.8,35.57]
[1725310883605,235.57,134.9,134.83,3.7085]
[1725310883901,3.7076,134.87,134.83,3.7085]
[1725310884311,0.05455241,134.86,134.84,0.04747243]
[1725310884695,0.05455241,134.86,134.85,3.708]
[1725310886401,0.05455241,134.86,134.84,0.04747243]
[1725310887506,203.75797623,134.9,134.84,0.04747243]
[1725310887507,200.0,134.9,134.86,35.57]
[1725310887709,200.0,134.9,134.89,39.2769]
[1725310888711,200.0,134.9,134.86,35.57]
[1725310889006,0.05694635,134.89,134.87,0.05072627]
[1725310889203,0.05694635,134.89,134.88,3.7071]
[1725310891009,0.05694635,134.89,134.87,0.05072627]
[1725310892907,0.05694635,134.89,134.87,3.75792627]
[1725310893112,0.05694635,134.89,134.87,35.62072627]
[1725310893499,0.05694635,134.89,134.88,3.7071]
[1725310894605,200.0,134.9,134.89,3.7069]
[1725310894606,19.79,134.9,134.89,3.7069]
[1725310894904,19.79,134.9,134.89,39.2769]
[1725310895510,19.79,134.9,134.89,3.7069]
[1725310896305,19.79,134.9,134.89,39.2769]
[1725310897709,2.7799,134.98,134.89,35.57]
[1725310897912,3.705,134.96,134.89,35.57]
[1725310898105,7.4228537,134.96,134.89,35.57]
[1725310898309,1.4157,134.98,134.86,35.57]
[1725310898507,14.65496206,135.01,134.94,35.57]
[1725310898811,0.05375992,134.99,134.96,3.75740967]
[1725310899812,3.75795992,134.99,134.96,3.75740967]
[1725310900013,3.75795992,134.99,134.96,0.05260967]
[1725310900014,0.05375992,134.99,134.96,0.05260967]
[1725310900211,1.3459,134.98,134.9,35.57]
[1725310900419,13.34342936,134.98,134.92,35.52267155]
[1725310900611,11.99752936,134.97,134.92,35.52267155]
[1725310900803,11.99752936,134.96,134.9,35.57]
[1725310901006,11.99752936,134.95,134.9,35.57]
[1725310901314,12.04815896,134.94,134.9,8.94858161]
[1725310901511,11.99752936,134.93,134.9,35.57]
[1725310901821,32.74735291,134.92,134.84,3.79949036]
[1725310902117,32.74735291,134.91,134.9,3.7066]
[1725310904212,32.74735291,134.91,134.9,39.2766]
[1725310904631,32.68385291,134.91,134.9,39.2766]
[1725310905312,1.3537,135.0,134.9,35.57]
[1725310905514,7.31429099,135.01,134.95,35.57]
[1725310906216,7.31429099,135.01,134.97,0.05616061]
[1725310906422,0.04799239,134.99,134.97,3.76076061]
[1725310906615,0.04799239,134.99,134.97,0.05616061]
[1725310908714,0.04799239,134.99,134.96,3.69071461]
[1725310909325,0.04799239,134.99,134.97,3.7045]
[1725310909817,0.04799239,134.99,134.97,3.75447452]
[1725310910226,0.04799239,134.99,134.98,3.7044]
[1725310910419,0.04799239,134.99,134.94,35.57]
[1725310911216,0.04799239,134.99,134.97,3.7045]
[1725310911724,0.04799239,134.99,134.97,3.75872861]
[1725310911925,0.04799239,134.99,134.98,3.7044]
[1725310912718,0.04799239,134.99,134.97,0.05422861]
[1725310913231,35.57,134.99,134.86,107.54785536]
[1725310913418,1.4552,134.98,134.86,107.54785536]
[1725310913720,1.4552,134.98,134.89,35.57]
[1725310913930,3.7047,134.97,134.89,35.57]
[1725310914230,0.05029711,134.94,134.92,0.05639574]
[1725310915022,0.05029711,134.94,134.93,3.7058]
[1725310916426,0.05029711,134.94,134.92,3.76229574]
[1725310917234,0.05029711,134.94,134.93,3.7058]
[1725310917419,7.31429099,135.01,134.93,35.57]
[1725310917819,7.31429099,135.01,134.93,39.3165728]
[1725310918026,7.31429099,135.01,134.93,35.57]
[1725310918229,11.05604719,135.01,134.93,35.57]
[1725310918524,0.04939912,134.98,134.97,3.7046]
[1725310921739,0.04939912,134.98,134.97,39.2746]
[1725310922323,0.04939912,134.98,134.97,3.7046]
[1725310923029,0.04939912,134.98,134.97,39.2746]
[1725310924329,7.31429099,135.01,135.0,3.7038]
[1725310924527,7.31429099,135.01,135.0,39.2738]
[1725310925831,7.31429099,135.01,135.0,3.7038]
[1725310927136,7.31429099,135.01,134.99,0.05393952]
[1725310928237,14.7661442,135.01,134.99,0.05393952]
[1725310928943,7.31429099,135.01,134.99,0.05393952]
[1725310930243,7.31429099,135.01,135.0,3.7038]
[1725310931536,7.31429099,135.01,134.99,3.75783952]
[1725310932454,7.31429099,135.01,134.99,0.05393952]
[1725310933536,46.6123539,135.01,134.94,3.7054]
[1725310933742,46.6123539,135.01,134.87,9.03602288]
[1725310933743,35.57,134.99,134.88,35.57]
[1725310933945,35.57,134.97,134.86,107.54785536]
[1725310934245,35.57,134.95,134.84,35.57]
[1725310934442,0.04992486,134.91,134.88,0.05301748]
[1725310935346,3.75632486,134.91,134.88,0.05301748]
[1725310935647,0.04992486,134.91,134.88,0.05301748]
[1725310935946,3.75622486,134.91,134.88,0.05301748]
[1725310936148,0.04992486,134.91,134.88,0.05301748]
[1725310937149,3.75642486,134.91,134.88,0.05301748]
[1725310937346,0.04992486,134.91,134.88,0.05301748]
[1725310937648,0.04992486,134.91,134.82,35.57]
[1725310937649,1.4585,134.9,134.82,35.57]
[1725310937841,5.1499,134.89,134.84,3.7082]
[1725310938040,5.1499,134.89,134.82,35.57]
[1725310938237,3.7077,134.86,134.76,9.03602288]
[1725310938449,37.013,134.89,134.77,7.03238221]
[1725310938646,35.61817356,134.84,134.82,0.05050559]
[1725310938852,3.7096,134.8,134.74,3.7108]
[1725310939049,0.05596604,134.78,134.76,0.05007191]
[1725310940649,0.05596604,134.78,134.77,3.7102]
[1725310941050,0.05596604,134.78,134.76,0.05007191]
[1725310941756,0.05596604,134.78,134.73,35.57]
[1725310941943,1.3555,134.83,134.77,35.57]
[1725310942144,1.3555,134.83,134.8,3.7091]
[1725310942553,1.3555,134.83,134.73,39.30980115]
[1725310942554,1.3555,134.83,134.79,35.57]
[1725310942744,1.40417971,134.83,134.8,3.7093]
[1725310942949,1.40417971,134.83,134.8,0.05649215]
[1725310943359,1.40417971,134.83,134.73,35.57]
[1725310943548,1.3555,134.83,134.73,35.57]
[1725310943956,3.76169086,134.82,134.73,35.57]
[1725310944153,7.47049086,134.82,134.73,35.57]
[1725310944453,0.05569752,134.79,134.76,0.04419135]
[1725310945052,0.05569752,134.79,134.76,3.75439135]
[1725310946050,0.05569752,134.79,134.77,3.7102]
[1725310946249,0.05569752,134.79,134.76,0.04419135]
[1725310946660,0.05569752,134.79,134.78,39.2799]
[1725310946965,1.3555,134.83,134.78,35.57]
[1725310947354,1.443,134.86,134.8,35.57]
[1725310947865,1.443,134.86,134.82,3.7086]
[1725310948056,0.04902019,134.85,134.83,0.04715081]
[1725310948455,1.4596,134.94,134.84,35.57]
[1725310948658,2.7158,134.93,134.84,35.57]
[1725310948967,3.706,134.92,134.87,3.7072]
[1725310949162,3.706,134.92,134.84,35.57]
[1725310949163,6.38978398,134.93,134.84,35.57]
[1725310949461,0.04936832,134.9,134.87,0.0540084]
[1725310951061,0.04936832,134.9,134.87,3.7614084]
[1725310951262,0.04936832,134.9,134.87,0.0540084]
[1725310951459,3.7073,134.88,134.83,3.7083]
[1725310951671,3.7073,134.88,134.82,35.57]
[1725310952065,3.7073,134.88,134.84,3.708]
[1725310952462,0.05141899,134.87,134.85,0.05019356]
[1725310952770,1.4596,134.94,134.85,35.62019356]
[1725310952975,1.4596,134.94,134.9,35.57]
[1725310953272,1.4426,134.97,134.9,35.57]
[1725310953468,1.4426,134.97,134.92,35.57]
[1725310953964,0.05168277,134.96,134.93,0.05054143]
[1725310954174,0.05168277,134.96,134.93,3.75624143]
[1725310954571,0.05168277,134.96,134.93,0.05054143]
[1725310956372,0.05168277,134.96,134.94,3.7054]
[1725310956675,0.05168277,134.96,134.93,0.05054143]
[1725310957374,0.05168277,134.96,134.93,3.75604143]
[1725310958083,0.05168277,134.96,134.93,0.05054143]
[1725310959179,0.05168277,134.96,134.93,3.75624143]
[1725310959480,0.05168277,134.96,134.93,0.05054143]
[1725310960284,0.05168277,134.96,134.93,3.75604143]
[1725310960975,0.05168277,134.96,134.93,0.05054143]
[1725310962374,0.05168277,134.96,134.93,3.75614143]
[1725310963685,0.05168277,134.96,134.93,0.05054143]
[1725310964181,0.05168277,134.96,134.95,3.7052]
[1725310964587,7.31429099,135.01,134.93,42.69]
[1725310964783,7.31429099,135.01,134.95,42.69]
[1725310964990,7.31429099,135.01,134.97,42.69]
[1725310965488,7.31429099,135.01,135.0,3.7038]